bitfinex-derivatives/quotes_SOLF0:USTF0_20260314
["timestamp","ask_amount","ask_price","bid_price","bid_amount"]
[1773516106535,18.89608299,86.984,86.939,4.50817685]
[1773516106736,18.89608299,86.983,86.939,4.50817685]
[1773516106937,9.30412424,86.982,86.939,4.50817685]
[1773516107241,9.30412424,86.981,86.939,4.50817685]
[1773516107443,9.30412424,86.98,86.939,4.50817685]
[1773516107643,10.345,86.985,86.94,3.12300838]
[1773516107843,9.3022942,86.984,86.941,4.52131818]
[1773516108047,10.345,86.985,86.941,4.52131818]
[1773516109346,10.344,86.994,86.943,4.52132449]
[1773516109546,18.88346373,86.993,86.943,4.52132449]
[1773516109747,18.88346373,86.992,86.943,4.52132449]
[1773516109944,3.12300838,86.99,86.943,4.52132449]
[1773516110146,9.29793862,86.989,86.943,4.52132449]
[1773516110345,3.12300838,86.99,86.943,4.52132449]
[1773516110346,9.29793862,86.988,86.943,4.52132449]
[1773516110548,9.29793862,86.987,86.946,4.52152849]
[1773516110846,3.12300838,86.99,86.946,4.52152849]
[1773516111048,9.29626593,86.989,86.946,4.52152849]
[1773516111239,9.29626593,86.988,86.946,4.52152849]
[1773516111442,9.29626593,86.987,86.946,4.52152849]
[1773516111638,3.12300838,86.99,86.946,4.52152849]
[1773516111845,9.29482273,86.989,86.946,4.52152849]
[1773516112045,9.29482273,86.988,86.946,4.52152849]
[1773516112247,3.12300838,86.99,86.946,4.52152849]
[1773516112547,9.2935584,86.989,86.946,4.52152849]
[1773516112750,9.2935584,86.988,86.946,4.52152849]
[1773516112951,3.12300838,86.99,86.946,4.52152849]
[1773516113151,9.2935584,86.989,86.946,4.52152849]
[1773516113352,3.12300838,86.99,86.946,4.52152849]
[1773516113553,9.28233182,86.989,86.946,4.52152849]
[1773516113753,3.12300838,86.99,86.946,4.52152849]
[1773516113954,9.28233182,86.989,86.946,4.52152849]
[1773516114148,3.12300838,86.99,86.946,4.52152849]
[1773516114345,9.2813448,86.989,86.946,4.52152849]
[1773516114545,3.12300838,86.99,86.946,4.52152849]
[1773516114745,9.2813448,86.989,86.946,4.52152849]
[1773516114948,3.12300838,86.99,86.946,4.52152849]
[1773516115145,9.2813448,86.989,86.946,4.52152849]
[1773516115353,3.12300838,86.99,86.946,4.52152849]
[1773516115654,9.28046968,86.989,86.946,4.52152849]
[1773516115854,3.12300838,86.99,86.946,4.52152849]
[1773516116056,9.28046853,86.989,86.946,4.52152849]
[1773516116254,10.344,86.992,86.946,4.52152849]
[1773516116454,9.27968456,86.991,86.946,4.52152849]
[1773516116655,9.27968456,86.99,86.946,4.52152849]
[1773516116858,10.344,86.992,86.946,4.52152849]
[1773516117051,9.27968444,86.991,86.946,4.52152849]
[1773516117249,9.27968444,86.99,86.946,4.52152849]
[1773516117557,10.344,86.992,86.946,4.52152849]
[1773516117856,9.27899189,86.991,86.946,4.52152849]
[1773516118051,9.27899189,86.99,86.946,4.52152849]
[1773516118253,10.344,86.992,86.946,4.52152849]
[1773516118453,9.27838317,86.991,86.946,4.52152849]
[1773516118655,9.27838317,86.99,86.946,4.52152849]
[1773516118854,10.344,86.992,86.946,4.52152849]
[1773516119054,9.27838317,86.991,86.946,4.52152849]
[1773516119246,9.27838317,86.99,86.946,4.52152849]
[1773516119446,10.344,86.992,86.946,4.52152849]
[1773516119653,9.27785357,86.991,86.946,4.52152849]
[1773516119853,9.27785357,86.99,86.946,4.52152849]
[1773516120050,10.344,86.992,86.946,4.52152849]
[1773516120359,9.27785357,86.991,86.946,4.52152849]
[1773516120553,9.27785357,86.99,86.946,4.52152849]
[1773516120753,10.344,86.992,86.946,4.52152849]
[1773516120956,9.27770763,86.991,86.946,4.52152849]
[1773516121153,9.27770763,86.99,86.946,4.52152849]
[1773516121362,10.344,86.992,86.946,4.52152849]
[1773516121557,9.27726651,86.991,86.946,4.52152849]
[1773516121755,10.344,86.992,86.946,4.52152849]
[1773516122055,9.27726651,86.991,86.946,4.52152849]
[1773516122254,10.344,86.992,86.946,4.52152849]
[1773516122454,9.27689774,86.991,86.946,4.52152849]
[1773516122655,10.344,86.992,86.946,4.52152849]
[1773516122857,9.27689774,86.991,86.946,4.52152849]
[1773516123151,10.344,86.992,86.946,4.52152849]
[1773516123357,9.27659847,86.991,86.946,4.52152849]
[1773516123657,10.344,86.992,86.946,4.52152849]
[1773516126462,10.344,86.989,86.946,4.52152849]
[1773516146280,10.344,86.987,86.946,4.52152849]
[1773516147280,9.29107589,86.986,86.946,4.52152849]
[1773516147477,10.344,86.987,86.946,4.52152849]
[1773516147781,9.29107589,86.986,86.946,4.52152849]
[1773516148074,10.344,86.987,86.946,4.52152849]
[1773516148275,18.88961785,86.986,86.946,4.52152849]
[1773516148473,9.29117997,86.985,86.946,4.52152849]
[1773516148678,9.29117997,86.984,86.946,4.52152849]
[1773516148982,9.29117997,86.983,86.946,4.52152849]
[1773516149172,10.344,86.987,86.946,4.52152849]
[1773516149173,9.29117997,86.982,86.946,4.52152849]
[1773516149378,10.344,86.987,86.946,4.52152849]
[1773516149680,18.89673849,86.986,86.946,4.52152849]
[1773516149880,18.89673849,86.985,86.946,4.52152849]
[1773516150081,9.29725147,86.984,86.946,4.52152849]
[1773516150281,9.29725147,86.983,86.946,4.52152849]
[1773516150481,9.29725147,86.982,86.946,4.52152849]
[1773516150683,10.344,86.987,86.946,4.52152849]
[1773516150882,18.89804096,86.986,86.946,4.52152849]
[1773516151083,18.89804096,86.985,86.946,4.52152849]
[1773516151383,9.2978964,86.984,86.946,4.52152849]
[1773516151580,9.2978964,86.983,86.946,4.52152849]
[1773516151775,3.12300838,86.98,86.925,4.51821287]
[1773516151980,3.12300838,86.96,86.913,4.51821287]
[1773516152180,3.12300838,86.95,86.913,4.51821287]
[1773516152680,3.12300838,86.95,86.9,4.51827279]
[1773516153582,3.12300838,86.95,86.905,4.52661212]
[1773516157182,13.47100838,86.96,86.905,4.52661212]
[1773516165688,13.47313699,86.96,86.905,4.52661212]
[1773516167996,36.2,86.979,86.931,4.5387376]
[1773516167997,10.347,86.969,86.931,4.5387376]
[1773516202939,10.73156115,86.989,86.9,277.09604675]
[1773516202940,10.73156115,86.994,86.941,4.52914264]
[1773516203139,20.678,87.035,86.901,34.5]
[1773516203140,9.32075151,86.993,86.951,4.52914264]
[1773516203336,3.12513699,87.01,86.951,4.52914264]
[1773516203638,18.86452032,87.009,86.951,4.52914264]
[1773516203841,18.86452032,87.008,86.951,4.52914264]
[1773516204039,18.86452032,87.007,86.951,4.52914264]
[1773516204242,18.86452032,87.006,86.951,4.52914264]
[1773516204443,18.86452032,87.005,86.951,4.52914264]
[1773516204635,10.343,86.997,86.951,4.52914264]
[1773516204833,9.29525236,86.996,86.951,4.52914264]
[1773516205033,9.29525236,86.995,86.951,4.52914264]
[1773516205229,10.343,86.997,86.951,4.52914264]
[1773516205428,9.28906875,86.996,86.951,4.52914264]
[1773516205739,10.343,86.997,86.951,4.52914264]
[1773516205939,9.2890642,86.996,86.951,4.52914264]
[1773516206240,10.343,86.997,86.951,4.52914264]
[1773516206439,9.28683502,86.996,86.951,4.52914264]
[1773516206633,10.343,86.997,86.951,4.52914264]
[1773516206830,9.28683502,86.996,86.951,4.52914264]
[1773516207040,10.343,86.997,86.951,4.52914264]
[1773516207634,10.342,87.008,86.955,4.52882277]
[1773516207838,18.8438042,87.007,86.955,4.52882277]
[1773516208037,18.8438042,87.006,86.955,4.52882277]
[1773516208239,18.8438042,87.005,86.955,4.52882277]
[1773516208430,18.8438042,87.004,86.955,4.52882277]
[1773516208631,29.1868042,87.003,86.955,4.52882277]
[1773516208830,18.8438042,87.002,86.955,4.52882277]
[1773516209035,9.28500118,87.001,86.955,4.52882277]
[1773516209337,9.28500118,87.0,86.955,4.52882277]
[1773516209536,9.28500118,86.999,86.955,4.52882277]
[1773516209737,10.343,87.003,86.955,4.52882277]
[1773516209939,10.343,87.0,86.955,4.52882277]
[1773516210132,9.28220045,86.999,86.955,4.52882277]
[1773516210338,10.343,87.0,86.955,4.52882277]
[1773516210537,9.28123659,86.999,86.955,4.52882277]
[1773516210738,10.343,87.0,86.955,4.52882277]
[1773516210933,9.28123659,86.999,86.955,4.52882277]
[1773516211238,10.343,87.0,86.955,4.52882277]
[1773516211439,9.28050966,86.999,86.955,4.52882277]
[1773516211637,13.46813699,87.0,86.955,4.52882277]
[1773516211832,9.28050966,86.999,86.955,4.52882277]
[1773516212036,13.46813699,87.0,86.955,4.52882277]
[1773516212237,9.28050966,86.999,86.955,4.52882277]
[1773516212438,13.46813699,87.0,86.955,4.52882277]
[1773516212737,9.28000784,86.999,86.955,4.52882277]
[1773516212938,13.46813699,87.0,86.955,4.52882277]
[1773516227550,13.46477786,87.0,86.955,4.52882277]
[1773516232163,9.27923782,86.999,86.955,4.52882277]
[1773516232363,13.46477786,87.0,86.955,4.52882277]
[1773516232557,9.27923782,86.999,86.955,4.52882277]
[1773516232753,13.46477786,87.0,86.955,4.52882277]
[1773516232963,10.343,86.998,86.955,4.52882277]
[1773516238165,9.28017597,86.997,86.955,4.52882277]
[1773516238367,10.343,86.998,86.955,4.52882277]
[1773516238670,9.28017597,86.997,86.955,4.52882277]
[1773516238862,10.343,86.998,86.955,4.52882277]
[1773516239057,9.28017597,86.997,86.955,4.52882277]
[1773516239262,10.343,86.998,86.955,4.52882277]
[1773516239565,9.28149129,86.997,86.955,4.52882277]
[1773516239766,10.343,86.998,86.955,4.52882277]
[1773516240069,9.28149129,86.997,86.955,4.52882277]
[1773516240267,9.28271841,86.996,86.955,4.52882277]
[1773516240465,10.343,86.998,86.955,4.52882277]
[1773516240767,9.28271841,86.997,86.955,4.52882277]
[1773516240964,9.28271841,86.996,86.955,4.52882277]
[1773516241158,10.343,86.998,86.955,4.52882277]
[1773516241363,9.28463792,86.997,86.955,4.52882277]
[1773516241557,9.28463792,86.996,86.955,4.52882277]
[1773516241759,10.343,86.998,86.955,4.52882277]
[1773516241965,9.28463792,86.997,86.955,4.52882277]
[1773516242166,9.28463792,86.996,86.955,4.52882277]
[1773516242367,9.28463792,86.995,86.955,4.52882277]
[1773516242566,10.343,86.998,86.955,4.52882277]
[1773516242769,18.92440865,86.997,86.955,4.52882277]
[1773516243068,9.2865409,86.996,86.955,4.52882277]
[1773516243270,9.2865409,86.995,86.955,4.52882277]
[1773516243468,9.2865409,86.994,86.955,4.52882277]
[1773516243670,10.343,86.998,86.955,4.52882277]
[1773516243867,18.92890868,86.997,86.955,4.52882277]
[1773516244068,18.92890868,86.996,86.955,4.52882277]
[1773516244263,18.93163182,86.995,86.955,4.52882277]
[1773516244465,9.28874147,86.994,86.955,4.52882277]
[1773516244667,9.28874147,86.993,86.955,4.52882277]
[1773516244862,10.343,86.998,86.955,4.52882277]
[1773516245063,18.93423476,86.997,86.955,4.52882277]
[1773516245367,18.93423476,86.996,86.955,4.52882277]
[1773516245670,18.93423476,86.995,86.955,4.52882277]
[1773516245869,18.93423476,86.994,86.955,4.52882277]
[1773516246071,9.29134438,86.993,86.955,4.52882277]
[1773516246369,9.29134438,86.992,86.955,4.52882277]
[1773516246570,9.29134438,86.991,86.955,4.52882277]
[1773516246870,9.29134438,86.99,86.955,4.52882277]
[1773516247070,10.343,86.998,86.955,4.52882277]
[1773516247270,18.9470819,86.997,86.955,4.52882277]
[1773516247468,18.9470819,86.996,86.955,4.52882277]
[1773516247670,18.9470819,86.995,86.955,4.52882277]
[1773516247869,18.9470819,86.994,86.955,4.52882277]
[1773516248071,18.9470819,86.993,86.955,4.52882277]
[1773516248270,18.9470819,86.992,86.955,4.52882277]
[1773516248471,18.9470819,86.991,86.955,4.52882277]
[1773516248772,18.9470819,86.99,86.955,4.52882277]
[1773516248972,18.9470819,86.989,86.955,4.52882277]
[1773516249169,18.9470819,86.988,86.955,4.52882277]
[1773516249465,9.29898131,86.987,86.955,4.52882277]
[1773516249671,9.29898131,86.986,86.955,4.52882277]
[1773516249871,10.343,86.998,86.955,4.52882277]
[1773516250073,18.95992374,86.997,86.955,4.52882277]
[1773516250270,18.95992374,86.996,86.955,4.52882277]
[1773516250568,18.95992374,86.995,86.955,4.52882277]
[1773516250768,18.95992374,86.994,86.955,4.52882277]
[1773516250969,18.95992374,86.993,86.955,4.52882277]
[1773516251169,18.95992374,86.992,86.955,4.52882277]
[1773516251369,10.343,86.998,86.955,4.52882277]
[1773516251370,18.95992374,86.991,86.955,4.52882277]
[1773516251671,18.95992374,86.99,86.955,4.52882277]
[1773516251872,18.95992374,86.989,86.955,4.52882277]
[1773516252073,18.95992374,86.988,86.955,4.52882277]
[1773516252374,9.3097945,86.987,86.955,4.52882277]
[1773516252675,9.3097945,86.986,86.955,4.52882277]
[1773516252870,10.343,86.998,86.955,4.52882277]
[1773516253065,18.96006247,86.997,86.955,4.52882277]
[1773516253274,18.96006247,86.996,86.955,4.52882277]
[1773516253575,18.96006247,86.995,86.955,4.52882277]
[1773516253770,18.96006247,86.994,86.955,4.52882277]
[1773516253969,18.96006247,86.993,86.955,4.52882277]
[1773516254173,18.96006247,86.992,86.955,4.52882277]
[1773516254368,18.96006247,86.991,86.955,4.52882277]
[1773516254571,18.96006247,86.99,86.955,4.52882277]
[1773516254772,9.30986126,86.989,86.955,4.52882277]
[1773516255072,9.30986126,86.988,86.955,4.52882277]
[1773516255277,10.342,87.006,86.955,4.52882277]
[1773516255472,10.342,87.003,86.958,4.54697516]
[1773516255665,18.95778293,87.002,86.958,4.54697516]
[1773516255871,18.95778293,87.001,86.958,4.54697516]
[1773516256174,18.95778293,87.0,86.958,4.54697516]
[1773516256374,18.95778293,86.999,86.958,4.54697516]
[1773516256568,18.95778293,86.998,86.958,4.54697516]
[1773516256767,18.95778293,86.997,86.958,4.54697516]
[1773516256970,18.95778293,86.996,86.958,4.54697516]
[1773516257275,18.95778293,86.995,86.958,4.54697516]
[1773516257474,18.95778293,86.994,86.958,4.54697516]
[1773516257674,18.95778293,86.993,86.958,4.54697516]
[1773516257876,18.95778293,86.992,86.958,4.54697516]
[1773516258077,18.95778293,86.991,86.958,4.54697516]
[1773516258277,18.95778293,86.99,86.958,4.54697516]
[1773516258478,9.30878414,86.989,86.958,4.54697516]
[1773516258779,9.30878414,86.988,86.958,4.54697516]
[1773516258976,9.30878414,86.987,86.958,4.54697516]
[1773516259179,3.12177786,87.0,86.958,4.54697516]
[1773516259375,18.95708886,86.999,86.958,4.54697516]
[1773516259678,18.95708886,86.998,86.958,4.54697516]
[1773516259980,18.95708886,86.997,86.958,4.54697516]
[1773516260181,18.95708886,86.996,86.958,4.54697516]
[1773516260379,18.95708886,86.995,86.958,4.54697516]
[1773516260675,18.95708886,86.994,86.958,4.54697516]
[1773516260882,18.95708886,86.993,86.958,4.54697516]
[1773516261178,18.95708886,86.992,86.958,4.54697516]
[1773516261381,18.95708886,86.991,86.958,4.54697516]
[1773516261581,18.95708886,86.99,86.958,4.54697516]
[1773516261782,9.30842286,86.989,86.958,4.54697516]
[1773516261982,9.30842286,86.988,86.958,4.54697516]
[1773516262181,9.30842286,86.987,86.958,4.54697516]
[1773516262382,3.12177786,87.0,86.958,4.54697516]
[1773516262579,18.95700027,86.999,86.958,4.54697516]
[1773516262776,18.95700027,86.998,86.958,4.54697516]
[1773516262982,18.95700027,86.997,86.958,4.54697516]
[1773516263182,18.95700027,86.996,86.958,4.54697516]
[1773516263381,18.95700027,86.995,86.958,4.54697516]
[1773516263581,18.95700027,86.994,86.958,4.54697516]
[1773516263782,18.95700027,86.993,86.958,4.54697516]
[1773516263982,18.95700027,86.992,86.958,4.54697516]
[1773516264183,18.95700027,86.991,86.958,4.54697516]
[1773516264382,18.95700027,86.99,86.958,4.54697516]
[1773516264580,18.95700027,86.989,86.958,4.54697516]
[1773516264779,9.30837862,86.988,86.958,4.54697516]
[1773516264980,9.30837862,86.987,86.958,4.54697516]
[1773516265180,9.30837862,86.986,86.958,4.54697516]
[1773516265381,3.12177786,87.0,86.958,4.54697516]
[1773516265582,18.95608209,86.999,86.958,4.54697516]
[1773516265782,18.95608209,86.998,86.958,4.54697516]
[1773516265982,18.95608209,86.997,86.958,4.54697516]
[1773516266182,18.95608209,86.996,86.958,4.54697516]
[1773516266486,18.95608209,86.995,86.958,4.54697516]
[1773516266683,18.95608209,86.994,86.958,4.54697516]
[1773516266884,18.95608209,86.993,86.958,4.54697516]
[1773516267183,18.95608209,86.992,86.958,4.54697516]
[1773516267483,18.95608209,86.991,86.958,4.54697516]
[1773516267682,18.95608209,86.99,86.958,4.54697516]
[1773516267885,18.95608209,86.989,86.958,4.54697516]
[1773516268088,9.30733451,86.988,86.958,4.54697516]
[1773516268388,9.30733451,86.987,86.958,4.54697516]
[1773516268584,9.30733451,86.986,86.958,4.54697516]
[1773516268785,3.12177786,87.0,86.958,4.54697516]
[1773516269086,18.95601707,86.999,86.958,4.54697516]
[1773516269285,18.95601707,86.998,86.958,4.54697516]
[1773516269486,18.95601707,86.997,86.958,4.54697516]
[1773516269686,18.95601707,86.996,86.958,4.54697516]
[1773516269887,18.95601707,86.995,86.958,4.54697516]
[1773516270084,18.95601707,86.994,86.958,4.54697516]
[1773516270388,18.95601707,86.993,86.958,4.54697516]
[1773516270691,9.30730319,86.992,86.958,4.54697516]
[1773516270884,9.30730319,86.991,86.958,4.54697516]
[1773516271080,9.30730319,86.99,86.958,4.54697516]
[1773516271286,9.30730319,86.989,86.958,4.54697516]
[1773516271585,9.30730319,86.988,86.958,4.54697516]
[1773516271787,9.30730319,86.987,86.958,4.54697516]
[1773516271987,9.30730319,86.986,86.958,4.54697516]
[1773516272188,10.342,87.003,86.958,4.54697516]
[1773516272487,10.343,87.0,86.958,4.54697516]
[1773516272687,18.95594461,86.999,86.958,4.54697516]
[1773516272888,18.95594461,86.998,86.958,4.54697516]
[1773516273089,18.95594461,86.997,86.958,4.54697516]
[1773516273289,18.95594461,86.996,86.958,4.54697516]
[1773516273489,18.95594461,86.995,86.958,4.54697516]
[1773516273689,18.95594461,86.994,86.958,4.54697516]
[1773516273891,18.95594461,86.993,86.958,4.54697516]
[1773516274087,18.95594461,86.992,86.958,4.54697516]
[1773516274284,10.343,87.0,86.958,4.54697516]
[1773516274285,18.95594461,86.991,86.958,4.54697516]
[1773516274483,18.95594461,86.99,86.949,10.349]
[1773516274689,18.95594461,86.989,86.949,10.349]
[1773516274888,9.30726861,86.988,86.949,10.349]
[1773516275093,9.30726861,86.987,86.949,14.89821613]
[1773516275394,9.30726861,86.986,86.95,4.54921613]
[1773516275597,13.46477786,87.0,86.95,4.54921613]
[1773516275789,18.9558979,86.999,86.95,4.54921613]
[1773516275991,18.9558979,86.998,86.95,4.54921613]
[1773516276291,18.9558979,86.997,86.95,4.54921613]
[1773516276490,18.9558979,86.996,86.95,4.54921613]
[1773516276689,18.9558979,86.995,86.95,4.54921613]
[1773516276893,18.9558979,86.994,86.95,4.54921613]
[1773516277100,18.9558979,86.993,86.95,4.54921613]
[1773516277398,18.9558979,86.992,86.95,4.54921613]
[1773516277592,18.9558979,86.991,86.95,4.54921613]
[1773516277792,18.9558979,86.99,86.95,4.54921613]
[1773516277992,18.9558979,86.989,86.95,4.54921613]
[1773516278194,18.9558979,86.988,86.95,4.54921613]
[1773516278397,9.30724592,86.987,86.95,4.54921613]
[1773516278597,9.30724592,86.986,86.95,4.54921613]
[1773516278899,10.343,87.0,86.95,4.54921613]
[1773516279197,18.9954943,86.999,86.95,4.54921613]
[1773516279398,18.9954943,86.998,86.95,4.54921613]
[1773516279599,18.9954943,86.997,86.95,4.54921613]
[1773516279798,18.9954943,86.996,86.95,4.54921613]
[1773516279996,18.9954943,86.995,86.95,4.54921613]
[1773516280199,18.9954943,86.994,86.95,4.54921613]
[1773516280496,18.9954943,86.993,86.95,4.54921613]
[1773516280697,18.9954943,86.992,86.95,4.54921613]
[1773516280892,18.9954943,86.991,86.95,4.54921613]
[1773516281090,18.9954943,86.99,86.95,4.54921613]
[1773516281295,18.9954943,86.989,86.95,4.54921613]
[1773516281502,18.9954943,86.988,86.95,4.54921613]
[1773516281694,9.30721086,86.987,86.95,4.54921613]
[1773516281894,10.343,87.0,86.95,4.54921613]
[1773516282095,18.99550798,86.999,86.95,4.54921613]
[1773516282397,18.99550798,86.998,86.95,4.54921613]
[1773516282594,18.99550798,86.997,86.95,4.54921613]
[1773516282799,18.99550798,86.996,86.95,4.54921613]
[1773516283001,18.99550798,86.995,86.95,4.54921613]
[1773516283201,18.99550798,86.994,86.95,4.54921613]
[1773516283404,18.99550798,86.993,86.95,4.54921613]
[1773516283700,18.99550798,86.992,86.95,4.54921613]
[1773516283902,18.99550798,86.991,86.95,4.54921613]
[1773516284103,18.99550798,86.99,86.95,4.54921613]
[1773516284302,18.99550798,86.989,86.95,4.54921613]
[1773516284503,18.99550798,86.988,86.95,4.54921613]
[1773516284704,9.30721753,86.987,86.95,4.54921613]
[1773516284902,10.343,87.0,86.95,4.54921613]
[1773516285102,18.9955212,86.999,86.95,4.54921613]
[1773516285304,18.9955212,86.998,86.95,4.54921613]
[1773516285603,18.9955212,86.997,86.95,4.54921613]
[1773516285806,18.9955212,86.996,86.95,4.54921613]
[1773516286002,18.9955212,86.995,86.95,4.54921613]
[1773516286202,18.9955212,86.994,86.95,4.54921613]
[1773516286398,18.9955212,86.993,86.95,4.54921613]
[1773516286602,18.9955212,86.992,86.95,4.54921613]
[1773516286805,18.9955212,86.991,86.95,4.54921613]
[1773516287006,18.9955212,86.99,86.95,4.54921613]
[1773516287205,18.9955212,86.989,86.95,4.54921613]
[1773516287508,18.9955212,86.988,86.95,4.54921613]
[1773516287807,13.46477786,87.0,86.95,4.54921613]
[1773516287808,9.30722427,86.987,86.95,4.54921613]
[1773516288008,13.46496958,87.0,86.95,4.54921613]
[1773516288309,18.99555303,86.999,86.95,4.54921613]
[1773516288507,18.99555303,86.998,86.95,4.54921613]
[1773516288707,18.99555303,86.997,86.95,4.54921613]
[1773516288908,18.99555303,86.996,86.95,4.54921613]
[1773516289207,18.99555303,86.995,86.95,4.54921613]
[1773516289403,18.99555303,86.994,86.95,4.54921613]
[1773516289608,18.99555303,86.993,86.95,4.54921613]
[1773516289907,18.99555303,86.992,86.95,4.54921613]
[1773516290107,18.99555303,86.991,86.95,4.54921613]
[1773516290408,18.99555303,86.99,86.95,4.54921613]
[1773516290604,18.99555303,86.989,86.95,4.54921613]
[1773516290911,18.99555303,86.988,86.95,4.54921613]
[1773516291101,9.30723087,86.987,86.95,4.54921613]
[1773516291304,9.30723087,86.986,86.95,4.54921613]
[1773516291505,13.46496958,87.0,86.95,4.54921613]
[1773516291701,18.99555318,86.999,86.95,4.54921613]
[1773516291906,18.99555318,86.998,86.95,4.54921613]
[1773516292206,18.99555318,86.997,86.95,4.54921613]
[1773516292401,18.99555318,86.996,86.95,4.54921613]
[1773516292602,18.99555318,86.995,86.95,4.54921613]
[1773516292811,18.99555318,86.994,86.95,4.54921613]
[1773516293003,18.99555318,86.993,86.95,4.54921613]
[1773516293206,18.99555318,86.992,86.95,4.54921613]
[1773516293407,18.99555318,86.991,86.95,4.54921613]
[1773516293610,18.99555318,86.99,86.95,4.54921613]
[1773516293809,18.99555318,86.989,86.95,4.54921613]
[1773516294011,18.99555318,86.988,86.95,4.54921613]
[1773516294212,9.3072303,86.987,86.95,4.54921613]
[1773516294412,9.3072303,86.986,86.95,4.54921613]
[1773516294613,13.46496958,87.0,86.95,4.54921613]
[1773516294913,10.343,86.995,86.95,4.54921613]
[1773516295112,18.99345924,86.994,86.95,4.54921613]
[1773516295309,18.99345924,86.993,86.95,4.54921613]
[1773516295509,3.12196958,86.98,86.939,4.57362509]
[1773516295707,18.99663359,86.979,86.939,4.57362509]
[1773516295907,18.99663359,86.978,86.939,4.57362509]
[1773516296109,3.12196958,86.98,86.939,4.57362509]
[1773516296110,9.30652305,86.977,86.939,4.57362509]
[1773516296310,3.12196958,86.98,86.939,4.57362509]
[1773516296516,29.33409624,86.979,86.939,4.57362509]
[1773516296713,9.30282374,86.978,86.929,4.57364543]
[1773516296918,9.30282374,86.977,86.929,4.57364543]
[1773516297113,10.345,86.979,86.929,4.57364543]
[1773516297318,9.30082783,86.978,86.929,4.57364543]
[1773516297518,3.12196958,86.97,86.929,4.57364543]
[1773516298113,3.12196958,86.97,86.928,285.36374144]
[1773516299718,10.346,86.972,86.928,285.36374144]
[1773516306326,10.346,86.972,86.928,289.9329019]
[1773516308027,10.346,86.972,86.929,4.5676869]
[1773516310127,10.347,86.964,86.929,4.5676869]
[1773516313126,10.346,86.972,86.929,4.5676869]
[1773516323329,10.347,86.965,86.929,4.5676869]
[1773516323629,9.27520974,86.979,86.928,285.36374144]
[1773516323933,3.12196958,86.97,86.928,285.36374144]
[1773516324433,10.348,86.957,86.928,285.36374144]
[1773516336137,3.12196958,86.96,86.916,4.55235029]
[1773516336435,18.89604579,86.959,86.916,4.55235029]
[1773516336638,18.89604579,86.958,86.916,4.55235029]
[1773516336827,18.89604579,86.957,86.916,4.55235029]
[1773516337029,9.28069969,86.956,86.916,4.55235029]
[1773516337232,9.28069969,86.955,86.916,4.55235029]
[1773516337435,9.28069969,86.954,86.916,4.55235029]
[1773516337635,10.35,86.942,86.916,4.55235029]
[1773516339343,10.349,86.95,86.916,4.55235029]
[1773516339537,10.74751129,86.972,86.916,4.55235029]
[1773516339538,10.74751129,86.973,86.92,3.12196958]
[1773516339839,3.12196958,86.97,86.921,4.53144885]
[1773516340035,18.83867898,86.969,86.921,4.53144885]
[1773516340241,18.83867898,86.968,86.921,4.53144885]
[1773516340440,18.83867898,86.967,86.921,4.53144885]
[1773516340641,18.83867898,86.966,86.921,4.53144885]
[1773516340936,18.83867898,86.965,86.921,4.53144885]
[1773516341142,18.83867898,86.964,86.921,4.53144885]
[1773516341340,18.83867898,86.963,86.921,4.53144885]
[1773516341538,10.348,86.953,86.921,4.53144885]
[1773516353153,9.28458827,86.952,86.921,4.53144885]
[1773516353354,10.348,86.953,86.921,4.53144885]
[1773516353653,9.28531037,86.952,86.921,4.53144885]
[1773516353853,10.348,86.953,86.921,4.53144885]
[1773516354054,9.28531037,86.952,86.921,4.53144885]
[1773516354250,10.348,86.953,86.921,4.53144885]
[1773516354452,9.28573695,86.952,86.921,4.53144885]
[1773516354752,10.348,86.953,86.921,4.53144885]
[1773516355047,9.28573637,86.952,86.921,4.53144885]
[1773516355354,10.348,86.953,86.921,4.53144885]
[1773516355556,9.28583445,86.952,86.921,4.53144885]
[1773516355757,10.348,86.953,86.921,4.53144885]
[1773516355958,9.28583445,86.952,86.921,4.53144885]
[1773516356158,10.348,86.953,86.921,4.53144885]
[1773516356358,9.2860029,86.952,86.921,4.53144885]
[1773516356559,10.348,86.953,86.921,4.53144885]
[1773516356858,9.28600232,86.952,86.921,4.53144885]
[1773516357052,10.348,86.953,86.921,4.53144885]
[1773516357258,9.28624401,86.952,86.921,4.53144885]
[1773516357459,10.348,86.953,86.921,4.53144885]
[1773516357660,9.28624401,86.952,86.921,4.53144885]
[1773516357860,10.348,86.953,86.921,4.53144885]
[1773516358058,9.28624401,86.952,86.921,4.53144885]
[1773516358261,10.348,86.953,86.921,4.53144885]
[1773516358561,9.28655966,86.952,86.921,4.53144885]
[1773516358758,10.348,86.953,86.921,4.53144885]
[1773516358959,9.28655727,86.952,86.921,4.53144885]
[1773516359160,10.348,86.953,86.921,4.53144885]
[1773516359461,9.28704112,86.952,86.921,4.53144885]
[1773516359657,10.348,86.953,86.921,4.53144885]
[1773516360162,9.28741809,86.952,86.921,4.53144885]